fUSD/lending_fUSD_20240425
["ID","MTS","AMOUNT","RATE_DAILY","PERIOD"]
[323509012,1714059059462,-500.0,0.00011544,2]
[323509013,1714059059472,-606.24,0.00011544,2]
[323509014,1714059059482,-841.71,0.00011544,2]
[323509015,1714059059494,-500.0,0.00011544,2]
[323509016,1714059059505,-500.0,0.00011544,2]
[323509017,1714059059515,-500.0,0.00011544,2]
[323509018,1714059059528,-1223.13,0.00011544,2]
[323509019,1714059059540,-500.0,0.00011544,2]
[323509020,1714059059551,-504.00017395,0.00011544,2]
[323509021,1714059059561,-5019.31,0.00011544,2]
[323509022,1714059059571,-821.68,0.00011544,2]
[323509023,1714059059581,-500.0,0.00011544,2]
[323509024,1714059059590,-500.0,0.00011544,2]
[323509025,1714059059601,-4077.42,0.00011544,2]
[323509026,1714059059611,-500.0,0.00011544,2]
[323509027,1714059059622,-3500.5,0.00011544,2]
[323509028,1714059059632,-1757.65,0.00011544,2]
[323509029,1714059059643,-2177.25,0.00011544,2]
[323509030,1714059059652,-500.0,0.00011544,2]
[323509031,1714059059662,-594.8,0.00011544,2]
[323509032,1714059059673,-500.0,0.00011544,2]
[323509033,1714059059682,-500.0,0.00011544,2]
[323509034,1714059059693,-500.0,0.00011544,2]
[323509035,1714059059703,-500.0,0.00011544,2]
[323509036,1714059059713,-705.06,0.00011544,2]
[323509037,1714059059723,-803.98,0.00011544,2]
[323509038,1714059059734,-500.0,0.00011544,2]
[323509039,1714059059748,-522.9,0.00011544,2]
[323509040,1714059059759,-500.0,0.00011544,2]
[323509041,1714059059773,-500.0,0.00011544,2]
[323509042,1714059059784,-500.0,0.00011544,2]
[323509043,1714059059793,-2500.13,0.00011544,2]
[323509044,1714059059804,-2201.38,0.00011544,2]
[323509045,1714059059814,-542.42,0.00011544,2]
[323509046,1714059059825,-500.0,0.00011544,2]
[323509047,1714059059837,-1785.16,0.00011544,2]
[323509048,1714059059848,-1640.01,0.00011544,2]
[323509049,1714059059858,-3127.15,0.00011544,2]
[323509050,1714059059868,-500.0,0.00011544,2]
[323509051,1714059059879,-500.0,0.00011544,2]
[323509052,1714059059889,-1472.65,0.00011544,2]
[323509053,1714059059899,-500.0,0.00011544,2]
[323509054,1714059059909,-500.0,0.00011544,2]
[323509055,1714059059919,-691.06,0.00011544,2]
[323509056,1714059059929,-500.0,0.00011544,2]
[323509057,1714059059941,-529.44,0.00011544,2]
[323509058,1714059059952,-500.0,0.00011544,2]
[323509059,1714059059962,-559.9,0.00011544,2]
[323509060,1714059059971,-561.96,0.00011544,2]
[323509061,1714059059982,-500.0,0.00011544,2]
[323509062,1714059059991,-5580.94,0.00011544,2]
[323509063,1714059060001,-500.0,0.00011544,2]
[323509064,1714059060011,-1608.39,0.00011544,2]
[323509065,1714059060023,-500.0,0.00011544,2]
[323509066,1714059060033,-510.41,0.00011544,2]
[323509067,1714059060043,-500.0,0.00011544,2]
[323509068,1714059060053,-488.0,0.00011544,2]
[323509069,1714059060062,-793.69,0.00011544,2]
[323509070,1714059060072,-500.0,0.00011544,2]
[323509071,1714059060082,-500.0,0.00011544,2]
[323509072,1714059060093,-686.7,0.00011544,2]
[323509073,1714059060103,-500.0,0.00011544,2]
[323509074,1714059060114,-708.87,0.00011544,2]
[323509075,1714059060123,-590.01,0.00011544,2]
[323509076,1714059060133,-1193646.34244549,0.00011545,2]
[323509077,1714059060143,-500.0,0.00011545,2]
[323509078,1714059060153,-500.0,0.00011545,2]
[323509079,1714059060163,-507.60851587,0.00011545,2]
[323509080,1714059060173,-500.0,0.00011545,2]
[323509081,1714059060183,-500.0,0.00011545,2]
[323509082,1714059060193,-500.0,0.00011545,2]
[323509083,1714059060204,-500.0,0.00011545,2]
[323509084,1714059060213,-808.63,0.00011545,2]
[323509085,1714059060223,-500.0,0.00011545,2]
[323509086,1714059060232,-500.0,0.00011545,2]
[323509087,1714059060242,-607.54,0.00011545,2]
[323509088,1714059060251,-500.0,0.00011545,2]
[323509089,1714059060260,-973.16,0.00011545,2]
[323509090,1714059060272,-500.0,0.00011545,2]
[323509091,1714059060281,-500.0,0.00011545,2]
[323509092,1714059060291,-500.0,0.00011545,2]
[323509093,1714059060301,-576.47,0.00011545,2]
[323509094,1714059060312,-500.0,0.00011545,2]
[323509095,1714059060322,-737.66,0.00011545,2]
[323509096,1714059060333,-500.0,0.00011545,2]
[323509097,1714059060343,-500.0,0.00011545,2]
[323509098,1714059060353,-500.0,0.00011545,2]
[323509099,1714059060363,-1144.12,0.00011545,2]
[323509100,1714059060373,-500.0,0.00011545,2]
[323509101,1714059060383,-500.0,0.00011545,2]
[323509102,1714059060393,-506.25,0.00011545,2]
[323509103,1714059060403,-500.0,0.00011545,2]
[323509104,1714059060412,-500.0,0.00011545,2]
[323509105,1714059060422,-678.0,0.00011545,2]
[323509106,1714059060432,-151.0,0.00011545,2]
[323509107,1714059060443,-500.0,0.00011545,2]
[323509108,1714059060453,-500.0,0.00011545,2]
[323509109,1714059060463,-500.0,0.00011545,2]
[323509110,1714059060473,-334.94,0.00011545,2]
[323509111,1714059060484,-500.0,0.00011545,2]
[323509112,1714059060494,-500.0,0.00011545,2]
[323509113,1714059060503,-561.42899922,0.00011545,2]
[323509114,1714059060515,-518.49,0.00011545,2]
[323509115,1714059060527,-500.0,0.00011545,2]
[323509116,1714059060536,-1413.5,0.00011545,2]
[323509117,1714059060546,-500.0,0.00011545,2]
[323509118,1714059060555,-500.0,0.00011545,2]
[323509119,1714059060565,-500.0,0.00011545,2]
[323509120,1714059060575,-500.0,0.00011545,2]
[323509121,1714059060585,-500.0,0.00011545,2]
[323509122,1714059060595,-500.0,0.00011545,2]
[323509123,1714059060606,-500.0,0.00011545,2]
[323509124,1714059060616,-500.0,0.00011545,2]
[323509125,1714059060625,-500.0,0.00011545,2]
[323509126,1714059060636,-880.47,0.00011545,2]
[323509127,1714059060645,-1068.2,0.00011545,2]
[323509128,1714059060655,-421.95552954,0.00011545,2]
[323509129,1714059060665,-151.0,0.00011545,2]
[323509130,1714059060675,-500.0,0.00011545,2]
[323509131,1714059060684,-500.0,0.00011545,2]
[323509132,1714059060694,-500.0,0.00011545,2]
[323509133,1714059060703,-500.0,0.00011545,2]
[323509134,1714059060713,-500.0,0.00011545,2]
[323509135,1714059060722,-500.0,0.00011545,2]
[323509136,1714059060735,-500.0,0.00011545,2]
[323509137,1714059060744,-500.0,0.00011545,2]
[323509138,1714059060754,-500.0,0.00011545,2]
[323509139,1714059060763,-500.0,0.00011545,2]
[323509140,1714059060775,-500.0,0.00011545,2]
[323509141,1714059060784,-500.0,0.00011545,2]
[323509142,1714059060793,-500.0,0.00011545,2]
[323509143,1714059060802,-795.36,0.00011545,2]
[323509144,1714059060811,-500.0,0.00011545,2]
[323509145,1714059060822,-866.26,0.00011545,2]
[323509146,1714059060831,-646.85,0.00011545,2]
[323509147,1714059060840,-500.0,0.00011545,2]
[323509148,1714059060849,-500.0,0.00011545,2]
[323509149,1714059060858,-315.94408791,0.00011545,2]
[323509150,1714059060867,-500.0,0.00011545,2]
[323509151,1714059060876,-500.0,0.00011545,2]
[323509152,1714059060885,-566.07,0.00011545,2]
[323509153,1714059060895,-500.0,0.00011545,2]
[323509154,1714059060904,-500.0,0.00011545,2]
[323509155,1714059060913,-178.84100401,0.00011545,2]
[323509156,1714059060922,-500.0,0.00011545,2]
[323509157,1714059060931,-527.7,0.00011545,2]
[323509158,1714059060940,-500.0,0.00011545,2]
[323509159,1714059060950,-500.0,0.00011545,2]
[323509160,1714059060959,-500.0,0.00011545,2]
[323509161,1714059060970,-717.73,0.00011545,2]
[323509162,1714059060979,-500.0,0.00011545,2]
[323509163,1714059060988,-832.0,0.00011545,2]
[323509164,1714059060997,-749.67,0.00011545,2]
[323509165,1714059061006,-500.0,0.00011545,2]
[323509166,1714059061016,-500.0,0.00011545,2]
[323509167,1714059061028,-1986.2,0.00011545,2]
[323509168,1714059061039,-772.4,0.00011545,2]
[323509169,1714059061048,-500.0,0.00011545,2]
[323509170,1714059061056,-500.0,0.00011545,2]
[323509171,1714059061065,-151.0,0.00011545,2]
[323509172,1714059061074,-783.66,0.00011545,2]
[323509173,1714059061083,-500.0,0.00011545,2]
[323509174,1714059061093,-151.0,0.00011545,2]
[323509175,1714059061103,-151.0,0.00011545,2]
[323509176,1714059061112,-500.0,0.00011545,2]
[323509177,1714059061122,-151.0,0.00011545,2]
[323509178,1714059061131,-151.0,0.00011545,2]
[323509179,1714059061141,-229.49,0.00011545,2]
[323509180,1714059061150,-500.0,0.00011545,2]
[323509181,1714059061160,-500.0,0.00011545,2]
[323509182,1714059061169,-500.0,0.00011545,2]
[323509183,1714059061179,-11839.99,0.00011545,2]
[323509184,1714059061189,-557.72,0.00011545,2]
[323509185,1714059061198,-500.0,0.00011545,2]
[323509186,1714059061207,-558.49,0.00011545,2]
[323509187,1714059061217,-500.0,0.00011545,2]
[323509188,1714059061226,-500.0,0.00011545,2]
[323509189,1714059061236,-519.75,0.00011545,2]
[323509190,1714059061245,-500.0,0.00011545,2]
[323509191,1714059061254,-1745.95,0.00011545,2]
[323509192,1714059061404,-1167.17,0.00011545,2]
[323509193,1714059061415,-500.0,0.00011545,2]
[323509194,1714059061425,-500.0,0.00011545,2]
[323509195,1714059061434,-1169.9,0.00011545,2]
[323509196,1714059061444,-1216.58,0.00011545,2]
[323509197,1714059061453,-500.0,0.00011545,2]
[323509198,1714059061463,-500.0,0.00011545,2]
[323509199,1714059061472,-500.0,0.00011545,2]
[323509200,1714059061481,-500.0,0.00011545,2]
[323509201,1714059061491,-500.0,0.00011545,2]
[323509202,1714059061500,-500.0,0.00011545,2]
[323509203,1714059061510,-500.0,0.00011545,2]
[323509204,1714059061520,-500.0,0.00011545,2]
[323509205,1714059061533,-500.0,0.00011545,2]
[323509206,1714059061543,-2165.95,0.00011545,2]
[323509207,1714059061554,-500.0,0.00011545,2]
[323509208,1714059061563,-500.0,0.00011545,2]
[323509209,1714059061573,-500.0,0.00011545,2]
[323509210,1714059061583,-520.34,0.00011545,2]
[323509211,1714059061592,-613.55,0.00011545,2]
[323509212,1714059061602,-500.0,0.00011545,2]
[323509213,1714059061611,-500.0,0.00011545,2]
[323509214,1714059061622,-500.0,0.00011545,2]
[323509215,1714059061631,-1598.65,0.00011545,2]
[323509216,1714059061641,-632.83,0.00011545,2]
[323509217,1714059061650,-500.0,0.00011546,2]
[323509218,1714059061660,-500.0,0.00011546,2]
[323509219,1714059061669,-500.0,0.00011546,2]
[323509220,1714059061679,-500.0,0.00011546,2]
[323509221,1714059061688,-500.0,0.00011546,2]
[323509222,1714059061697,-500.0,0.00011546,2]
[323509223,1714059061706,-500.0,0.00011546,2]
[323509224,1714059061715,-500.0,0.00011546,2]
[323509225,1714059061725,-500.0,0.00011546,2]
[323509226,1714059061734,-500.0,0.00011546,2]
[323509227,1714059061746,-500.0,0.00011546,2]
[323509228,1714059061755,-500.0,0.00011546,2]
[323509229,1714059061765,-500.0,0.00011546,2]
[323509230,1714059061777,-500.0,0.00011546,2]
[323509231,1714059061788,-500.0,0.00011546,2]
[323509232,1714059061797,-500.0,0.00011546,2]
[323509233,1714059061806,-500.0,0.00011546,2]
[323509234,1714059061816,-500.0,0.00011546,2]
[323509235,1714059061825,-500.0,0.00011546,2]
[323509236,1714059061834,-500.0,0.00011546,2]
[323509237,1714059061844,-500.0,0.00011546,2]
[323509238,1714059061853,-500.0,0.00011546,2]
[323509239,1714059061862,-500.0,0.00011546,2]
[323509240,1714059061873,-500.0,0.00011546,2]
[323509241,1714059061882,-500.0,0.00011546,2]
[323509242,1714059061891,-500.0,0.00011546,2]
[323509243,1714059061901,-500.0,0.00011546,2]
[323509244,1714059061910,-500.0,0.00011546,2]
[323509245,1714059061918,-500.0,0.00011546,2]
[323509246,1714059061927,-500.0,0.00011546,2]
[323509247,1714059061937,-500.0,0.00011546,2]
[323509248,1714059061946,-500.0,0.00011546,2]
[323509249,1714059061956,-500.0,0.00011546,2]
[323509250,1714059061965,-500.0,0.00011546,2]
[323509251,1714059061975,-500.0,0.00011546,2]
[323509252,1714059061985,-500.0,0.00011546,2]
[323509253,1714059061995,-500.0,0.00011546,2]
[323509254,1714059062004,-500.0,0.00011546,2]
[323509255,1714059062014,-507.71,0.00011546,2]
[323509256,1714059062028,-248.80245203,0.00011546,2]
[323509257,1714059062040,-361.62059334,0.00011546,2]
[323509258,1714059062051,-500.0,0.00011546,2]
[323509259,1714059062060,-500.0,0.00011547,2]
[323509260,1714059062071,-500.0,0.00011547,2]
[323509261,1714059062081,-500.0,0.00011547,2]
[323509262,1714059062091,-500.0,0.00011547,2]
[323509263,1714059062100,-500.0,0.00011547,2]
[323509264,1714059062110,-638.35382211,0.00011547,2]
[323509265,1714059062120,-500.0,0.00011547,2]
[323509266,1714059062129,-500.0,0.00011547,2]
[323509267,1714059062139,-591.81363045,0.00011547,2]
[323509268,1714059062148,-500.0,0.00011547,2]
[323509269,1714059062158,-500.0,0.00011547,2]
[323509270,1714059062167,-500.0,0.00011547,2]
[323509271,1714059062177,-500.0,0.00011547,2]
[323509272,1714059062187,-500.0,0.00011547,2]
[323509273,1714059062197,-366.94316858,0.00011547,2]
[323509274,1714059062206,-500.0,0.00011547,2]
[323509275,1714059062215,-500.0,0.00011547,2]
[323509276,1714059062224,-500.0,0.00011547,2]
[323509277,1714059062234,-500.0,0.00011547,2]
[323509278,1714059062243,-504.42,0.00011547,2]
[323509279,1714059062252,-516.52,0.00011547,2]
[323509280,1714059062262,-500.0,0.00011547,2]
[323509281,1714059062272,-503.65845543,0.00011547,2]
[323509282,1714059062281,-500.0,0.00011547,2]
[323509283,1714059062290,-500.0,0.00011547,2]
[323509284,1714059062299,-500.0,0.00011547,2]
[323509285,1714059062308,-501.36,0.00011547,2]
[323509286,1714059062318,-485.53135173,0.00011547,2]
[323509287,1714059062327,-500.0,0.00011547,2]
[323509288,1714059062336,-500.0,0.00011547,2]
[323509289,1714059062346,-500.0,0.00011547,2]
[323509290,1714059062356,-500.0,0.00011547,2]
[323509291,1714059062365,-500.0,0.00011547,2]
[323509292,1714059062374,-500.0,0.00011547,2]
[323509293,1714059062383,-450.68402175,0.00011547,2]
[323509294,1714059062392,-500.0,0.00011547,2]
[323509295,1714059062401,-500.0,0.00011547,2]
[323509296,1714059062411,-500.0,0.00011547,2]
[323509297,1714059062420,-500.0,0.00011547,2]
[323509298,1714059062430,-500.0,0.00011547,2]
[323509299,1714059062439,-500.0,0.00011547,2]
[323509300,1714059062448,-500.0,0.00011547,2]
[323509301,1714059062458,-500.0,0.00011547,2]
[323509302,1714059062468,-500.0,0.00011547,2]
[323509303,1714059062477,-500.0,0.00011547,2]
[323509304,1714059062486,-580.53635876,0.00011547,2]
[323509305,1714059062496,-500.0,0.00011547,2]
[323509306,1714059062505,-500.0,0.00011547,2]
[323509307,1714059062515,-288.81471377,0.00011547,2]
[323509308,1714059062527,-306.74199887,0.00011547,2]
[323509309,1714059062537,-150.0,0.00011547,2]
[323509310,1714059062546,-500.0,0.00011547,2]
[323509311,1714059062559,-563.86,0.00011547,2]
[323509312,1714059062569,-500.0,0.00011547,2]
[323509313,1714059062579,-622.8,0.00011547,2]
[323509314,1714059062589,-500.0,0.00011547,2]
[323509315,1714059062599,-500.0,0.00011547,2]
[323509316,1714059062609,-500.0,0.00011547,2]
[323509317,1714059062618,-500.0,0.00011547,2]
[323509318,1714059062627,-503.15753355,0.00011547,2]
[323509319,1714059062636,-637.31365885,0.00011547,2]
[323509320,1714059062645,-500.0,0.00011547,2]
[323509321,1714059062656,-500.0,0.00011547,2]
[323509322,1714059062665,-500.0,0.00011547,2]
[323509323,1714059062674,-500.0,0.00011547,2]
[323509324,1714059062684,-588.75,0.00011547,2]
[323509325,1714059062693,-500.0,0.00011547,2]
[323509326,1714059062702,-500.0,0.00011547,2]
[323509327,1714059062711,-500.0,0.00011547,2]
[323509328,1714059062720,-570.04,0.00011547,2]
[323509329,1714059062733,-500.0,0.00011547,2]
[323509330,1714059062743,-500.0,0.00011547,2]
[323509331,1714059062752,-500.0,0.00011547,2]
[323509332,1714059062761,-500.0,0.00011547,2]
[323509333,1714059062773,-500.0,0.00011547,2]
[323509334,1714059062782,-500.0,0.00011547,2]
[323509335,1714059062792,-455.98,0.00011547,2]
[323509336,1714059062801,-500.0,0.00011547,2]
[323509337,1714059062810,-500.0,0.00011547,2]
[323509338,1714059062821,-500.0,0.00011547,2]
[323509339,1714059062830,-500.0,0.00011547,2]
[323509340,1714059062839,-191.73,0.00011547,2]
[323509341,1714059062850,-500.0,0.00011547,2]
[323509342,1714059062859,-376.38,0.00011547,2]
[323509343,1714059062868,-269.05,0.00011547,2]
[323509344,1714059062878,-500.0,0.00011547,2]
[323509345,1714059062887,-630.44,0.00011547,2]
[323509346,1714059062896,-644.56,0.00011547,2]
[323509347,1714059062906,-500.0,0.00011547,2]
[323509348,1714059062915,-500.0,0.00011547,2]
[323509349,1714059062925,-500.0,0.00011547,2]
[323509350,1714059062934,-500.0,0.00011547,2]
[323509351,1714059062943,-500.0,0.00011547,2]
[323509352,1714059062952,-464.98,0.00011547,2]
[323509353,1714059062961,-500.0,0.00011547,2]
[323509354,1714059062971,-500.0,0.00011547,2]
[323509355,1714059062980,-500.0,0.00011547,2]
[323509356,1714059062990,-196.4,0.00011547,2]
[323509357,1714059062999,-500.0,0.00011547,2]
[323509358,1714059063008,-500.0,0.00011547,2]
[323509359,1714059063018,-500.0,0.00011547,2]
[323509360,1714059063030,-500.0,0.00011547,2]
[323509361,1714059063042,-500.0,0.00011547,2]
[323509362,1714059063051,-500.0,0.00011547,2]
[323509363,1714059063060,-500.0,0.00011547,2]
[323509364,1714059063069,-500.0,0.00011547,2]
[323509365,1714059063078,-500.0,0.00011547,2]
[323509366,1714059063088,-500.0,0.00011547,2]
[323509367,1714059063097,-500.0,0.00011547,2]
[323509368,1714059063107,-500.0,0.00011547,2]
[323509369,1714059063116,-500.0,0.00011547,2]
[323509370,1714059063125,-500.0,0.00011547,2]
[323509371,1714059063135,-500.0,0.00011547,2]
[323509372,1714059063144,-500.0,0.00011547,2]
[323509373,1714059063153,-500.0,0.00011547,2]
[323509374,1714059063162,-500.0,0.00011547,2]
[323509375,1714059063172,-500.0,0.00011547,2]
[323509376,1714059063181,-500.0,0.00011547,2]
[323509377,1714059063191,-555.07,0.00011547,2]
[323509378,1714059063201,-500.0,0.00011547,2]
[323509379,1714059063210,-500.0,0.00011547,2]
[323509380,1714059063220,-500.0,0.00011547,2]
[323509381,1714059063229,-500.0,0.00011547,2]
[323509382,1714059063238,-500.0,0.00011547,2]
[323509383,1714059063248,-500.0,0.00011547,2]
[323509384,1714059063256,-500.0,0.00011547,2]
[323509385,1714059063266,-500.0,0.00011547,2]
[323509386,1714059063278,-500.0,0.00011547,2]
[323509387,1714059063288,-500.0,0.00011547,2]
[323509388,1714059063297,-892.56,0.00011547,2]
[323509389,1714059063306,-500.0,0.00011547,2]
[323509390,1714059063315,-500.0,0.00011547,2]
[323509391,1714059063325,-500.0,0.00011547,2]
[323509392,1714059063334,-500.0,0.00011547,2]
[323509393,1714059063343,-500.0,0.00011547,2]
[323509394,1714059063353,-276.40637711,0.00011547,2]
[323509395,1714059063362,-500.0,0.00011547,2]
[323509396,1714059063371,-500.0,0.00011547,2]
[323509397,1714059063381,-461.24695214,0.00011547,2]
[323509398,1714059063390,-500.0,0.00011547,2]
[323509399,1714059063400,-500.0,0.00011547,2]
[323509400,1714059063411,-501.18,0.00011547,2]
[323509401,1714059063555,-500.0,0.00011547,2]
[323509402,1714059063565,-800.1,0.00011547,2]
[323509403,1714059063574,-500.0,0.00011547,2]
[323509404,1714059063584,-555.99,0.00011547,2]
[323509405,1714059063593,-541.47,0.00011547,2]
[323509406,1714059063602,-666.31,0.00011547,2]
[323509407,1714059063613,-500.0,0.00011547,2]
[323509408,1714059063623,-329.52492774,0.00011547,2]
[323509409,1714059063632,-444.0003911,0.00011547,2]
[323509410,1714059063643,-500.0,0.00011547,2]
[323509411,1714059063653,-500.0,0.00011547,2]
[323509412,1714059063662,-789.54,0.00011547,2]
[323509413,1714059063672,-526.56,0.00011547,2]
[323509414,1714059063681,-500.0,0.00011547,2]
[323509415,1714059063690,-2043.0,0.00011547,2]
[323509416,1714059063699,-500.0,0.00011547,2]
[323509417,1714059063709,-500.0,0.00011547,2]
[323509418,1714059063719,-277.66833104,0.00011547,2]
[323509419,1714059063728,-500.0,0.00011547,2]
[323509420,1714059063737,-500.0,0.00011547,2]
[323509421,1714059063750,-500.0,0.00011547,2]
[323509422,1714059063760,-500.0,0.00011547,2]
[323509423,1714059063769,-219.2720685,0.00011547,2]
[323509424,1714059063780,-5875.09,0.00011547,2]
[323509425,1714059063791,-515.21876177,0.00011547,2]
[323509426,1714059063801,-500.0,0.00011547,2]
[323509427,1714059063810,-1728.53,0.00011547,2]
[323509428,1714059063820,-7367.99,0.00011547,2]
[323509429,1714059063831,-428.22,0.00011547,2]
[323509430,1714059063841,-433.55,0.00011547,2]
[323509431,1714059063850,-500.0,0.00011547,2]
[323509432,1714059063859,-500.0,0.00011547,2]
[323509433,1714059063869,-3915.64,0.00011547,2]
[323509434,1714059063878,-590.75,0.00011547,2]
[323509435,1714059063888,-500.0,0.00011547,2]
[323509436,1714059063897,-1589.05021031,0.00011569,2]
[323509437,1714059063906,-1000.0,0.000116,4]
[323509438,1714059063915,-1589.05021031,0.00011635,2]
[323509439,1714059063925,-1000.0,0.000117,4]
[323509440,1714059063934,-1589.05021031,0.00011701,2]
[323509441,1714059063944,-1589.05021031,0.00011767,2]
[323509442,1714059063953,-172.96457164,0.00011798,2]
[323509443,1714059063962,-1000.0,0.000118,4]
[323509444,1714059063972,-910.54,0.00011808,2]
[323509445,1714059063981,-910.54,0.00011808,2]
[323509446,1714059063991,-910.54,0.00011808,2]
[323509447,1714059064000,-208.97892594,0.00011817,2]
[323509448,1714059064010,-164.94637069,0.00011817,2]
[323509449,1714059064020,-155.12808712,0.00011817,2]
[323509450,1714059064031,-1176.00417552,0.00011817,2]
[323509451,1714059064040,-730.43050307,0.00011817,2]
[323509452,1714059064049,-238.2718178,0.00011817,2]
[323509453,1714059064059,-1376.06970911,0.00011817,2]
[323509454,1714059064069,-162.31364415,0.00011817,2]
[323509455,1714059064079,-246.53906713,0.00011817,2]
[323509456,1714059064090,-155.0,0.00011817,2]
[323509457,1714059064099,-10569.49520834,0.00011817,2]
[323509458,1714059064109,-155.0,0.00011817,2]
[323509459,1714059064118,-189.56005963,0.00011817,2]
[323509460,1714059064127,-1285.53,0.00011817,2]
[323509461,1714059064137,-582.7,0.00011817,2]
[323509462,1714059064147,-1404.61,0.00011817,2]
[323509463,1714059064156,-500.0,0.00011817,2]
[323509464,1714059064166,-500.0,0.00011817,2]
[323509465,1714059064175,-772.79,0.00011817,2]
[323509466,1714059064185,-6923.7,0.00011817,2]
[323509467,1714059064194,-500.0,0.00011817,2]
[323509468,1714059064203,-3042.8,0.00011817,2]
[323509469,1714059064213,-4452.19,0.00011817,2]
[323509470,1714059064222,-500.0,0.00011817,2]
[323509471,1714059064232,-857.94,0.00011817,2]
[323509472,1714059064241,-500.0,0.00011817,2]
[323509473,1714059064251,-2130.51,0.00011817,2]
[323509474,1714059064260,-500.0,0.00011817,2]
[323509475,1714059064270,-677.62,0.00011817,2]
[323509476,1714059064281,-500.0,0.00011817,2]
[323509477,1714059064290,-656.76,0.00011817,2]
[323509478,1714059064299,-2711.66,0.00011817,2]
[323509479,1714059064308,-500.0,0.00011817,2]
[323509480,1714059064318,-500.0,0.00011817,2]
[323509481,1714059064327,-5260.5,0.00011817,2]
[323509482,1714059064336,-855.68,0.00011817,2]
[323509483,1714059064346,-678.72,0.00011817,2]
[323509484,1714059064355,-500.0,0.00011817,2]
[323509485,1714059064364,-500.0,0.00011817,2]
[323509486,1714059064373,-500.0,0.00011817,2]
[323509487,1714059064383,-500.0,0.00011817,2]
[323509488,1714059064392,-500.0,0.00011817,2]
[323509489,1714059064402,-500.0,0.00011817,2]
[323509490,1714059064411,-797.71,0.00011817,2]
[323509491,1714059064421,-500.0,0.00011817,2]
[323509492,1714059064430,-18150.15,0.00011817,2]
[323509493,1714059064439,-500.0,0.00011817,2]
[323509494,1714059064449,-500.0,0.00011817,2]
[323509495,1714059064458,-13101.6107196,0.00011818,2]
[323509496,1714059064468,-441.95609882,0.00011818,2]
[323509497,1714059064478,-191.29485915,0.00011818,2]
[323509498,1714059064487,-613.85,0.00011818,2]
[323509499,1714059064496,-500.0,0.00011818,2]
[323509500,1714059064506,-526.29,0.00011818,2]
[323509501,1714059064516,-500.0,0.00011818,2]
[323509502,1714059064530,-622.9,0.00011818,2]
[323509503,1714059064539,-555.41,0.00011818,2]
[323509504,1714059064548,-704.3,0.00011818,2]
[323509505,1714059064558,-500.0,0.00011818,2]
[323509506,1714059064567,-500.0,0.00011818,2]
[323509507,1714059064576,-500.0,0.00011818,2]
[323509508,1714059064585,-500.0,0.00011818,2]
[323509509,1714059064593,-500.0,0.00011818,2]
[323509510,1714059064603,-500.0,0.00011818,2]
[323509511,1714059064613,-207.63,0.00011818,2]